bitfinex/quotes_SOLUSD_20241021
["timestamp","ask_amount","ask_price","bid_price","bid_amount"]
[1729475861102,16.8683135,169.68,169.62,1.47416259]
[1729475862733,16.8683135,169.68,169.61,6.44727782]
[1729475862905,16.8683135,169.68,169.62,1.47418132]
[1729475863230,16.8683135,169.68,169.63,1.47418132]
[1729475863527,16.8683135,169.68,169.6,20.0]
[1729475863827,16.8683135,169.68,169.61,1.47418609]
[1729475864060,16.8683135,169.68,169.62,1.47418609]
[1729475864325,16.8683135,169.68,169.63,1.47418609]
[1729475864529,16.8683135,169.68,169.59,20.0]
[1729475864708,16.8683135,169.68,169.6,1.47418046]
[1729475867130,16.8683135,169.68,169.61,1.47418767]
[1729475867317,16.8683135,169.68,169.62,1.47418767]
[1729475867515,16.8683135,169.68,169.63,1.47418767]
[1729475867716,16.8683135,169.68,169.59,20.0]
[1729475867923,23.5201135,169.68,169.6,1.4741697]
[1729475868241,23.5201135,169.68,169.61,1.4741697]
[1729475868439,23.5201135,169.68,169.62,1.4741697]
[1729475868615,23.5201135,169.68,169.63,1.4741697]
[1729475868818,23.5201135,169.68,169.58,12.59348142]
[1729475869024,23.5201135,169.68,169.59,1.4742227]
[1729475870912,23.5201135,169.68,169.58,12.59348142]
[1729475871128,23.5201135,169.68,169.59,1.47422348]
[1729475871308,23.5201135,169.68,169.58,12.59348142]
[1729475871515,23.5201135,169.68,169.59,1.47422115]
[1729475878325,23.5201135,169.68,169.6,1.47422115]
[1729475878523,23.5201135,169.68,169.61,1.47422115]
[1729475878727,23.5201135,169.68,169.62,1.47422115]
[1729475879066,23.5201135,169.68,169.63,1.47426227]
[1729475879222,23.5201135,169.68,169.64,1.47426227]
[1729475879422,23.5201135,169.68,169.65,1.47426227]
[1729475879621,23.5201135,169.68,169.58,12.59348142]
[1729475879841,23.5201135,169.68,169.59,1.47427347]
[1729475880145,23.5201135,169.68,169.6,1.47427347]
[1729475880439,23.5201135,169.68,169.61,1.47427347]
[1729475881434,23.5201135,169.68,169.62,1.47427347]
[1729475881630,23.5201135,169.68,169.6,6.44727782]
[1729475881825,23.5201135,169.68,169.61,1.47427451]
[1729475882030,23.5201135,169.68,169.62,1.47427451]
[1729475882341,23.5201135,169.68,169.63,1.47427451]
[1729475882527,23.5201135,169.68,169.64,1.47427451]
[1729475882729,23.5201135,169.68,169.65,1.47427451]
[1729475882938,23.5201135,169.68,169.66,1.47427451]
[1729475883140,23.5201135,169.68,169.67,1.47427451]
[1729475883629,23.5201135,169.68,169.62,1.47427451]
[1729475883817,23.5201135,169.68,169.63,1.47427451]
[1729475884021,23.5201135,169.68,169.64,1.47427451]
[1729475884239,23.5201135,169.68,169.65,1.47427451]
[1729475884447,23.5201135,169.68,169.66,1.47427451]
[1729475884634,23.5201135,169.68,169.67,1.47427451]
[1729475885036,23.5201135,169.68,169.62,1.47427451]
[1729475885231,23.5201135,169.68,169.63,1.47427451]
[1729475885520,23.5201135,169.68,169.64,1.47424738]
[1729475885720,23.5201135,169.68,169.65,1.47424738]
[1729475886022,23.5201135,169.68,169.66,1.47424738]
[1729475886337,23.5201135,169.68,169.67,1.47424738]
[1729475888950,23.5201135,169.68,169.67,1.47419114]
[1729475890046,16.8683135,169.68,169.67,1.47419114]
[1729475893748,16.8683135,169.68,169.67,1.47406867]
[1729475897249,16.8683135,169.68,169.61,6.44727782]
[1729475897555,16.8683135,169.68,169.62,1.47408238]
[1729475897855,16.8683135,169.68,169.63,1.47408238]
[1729475898049,16.8683135,169.68,169.64,1.47408238]
[1729475898228,16.8683135,169.68,169.65,1.47408238]
[1729475898555,16.8683135,169.68,169.66,1.47408238]
[1729475898854,16.8683135,169.68,169.62,6.44727782]
[1729475898855,16.8683135,169.68,169.67,1.47408238]
[1729475900958,16.8683135,169.68,169.62,6.44727782]
[1729475901249,16.8683135,169.68,169.63,1.4742186]
[1729475901431,16.8683135,169.68,169.64,1.4742186]
[1729475901631,16.8683135,169.68,169.65,1.4742186]
[1729475901944,16.8683135,169.68,169.66,1.4742186]
[1729475902136,16.8683135,169.68,169.67,1.4742186]
[1729475905053,16.8683135,169.68,169.67,1.47425261]
[1729475905765,0.1,169.65,169.62,6.44727782]
[1729475905935,45.777684,169.64,169.63,1.47436163]
[1729475906131,45.877684,169.64,169.63,1.47436163]
[1729475906861,46.7624284,169.64,169.63,1.47436163]
[1729475908155,0.1,169.62,169.51,6.14822004]
[1729475908346,0.1,169.62,169.52,20.0]
[1729475910543,23.976884,169.63,169.52,20.0]
[1729475911840,0.1,169.62,169.52,20.0]
[1729475912759,16.8907444,169.64,169.52,20.0]
[1729475912760,16.9907444,169.64,169.52,20.0]
[1729475912962,16.8907444,169.64,169.52,20.0]
[1729475914563,16.8907444,169.64,169.52,24.79482081]
[1729475916456,16.8907444,169.64,169.52,4.79482081]
[1729475917847,16.8907444,169.64,169.53,21.47472842]
[1729475918046,16.8907444,169.64,169.54,1.47472842]
[1729475918247,16.8907444,169.64,169.55,1.47472842]
[1729475918466,16.8907444,169.64,169.56,1.47472842]
[1729475918670,16.8907444,169.64,169.57,1.47472842]
[1729475918967,16.8907444,169.64,169.58,1.47472842]
[1729475919160,16.8907444,169.64,169.59,1.47472842]
[1729475919363,16.8907444,169.64,169.6,1.47472842]
[1729475919561,16.8907444,169.64,169.61,1.47472842]
[1729475919864,16.8907444,169.64,169.62,1.47472842]
[1729475920070,16.8907444,169.64,169.52,24.79482081]
[1729475920243,16.8907444,169.64,169.63,1.47454848]
[1729475920663,16.8907444,169.64,169.53,21.47454848]
[1729475920964,16.8907444,169.64,169.54,1.47454848]
[1729475921163,16.8907444,169.64,169.55,1.47454848]
[1729475921356,16.8907444,169.64,169.56,1.47454848]
[1729475921557,16.8907444,169.64,169.57,1.47454848]
[1729475921870,16.8907444,169.64,169.58,1.47454848]
[1729475922161,16.8907444,169.64,169.53,20.0]
[1729475922162,16.8907444,169.64,169.59,1.47454848]
[1729475922350,0.8847444,169.64,169.6,1.47454848]
[1729475922663,0.8847444,169.64,169.61,1.47454848]
[1729475922869,0.8847444,169.64,169.62,1.47454848]
[1729475923045,0.8847444,169.64,169.63,1.47454848]
[1729475924052,0.8847444,169.64,169.63,1.47446491]
[1729475926359,0.8847444,169.64,169.63,6.78752966]
[1729475926667,0.8847444,169.64,169.63,26.78752966]
[1729475928173,5.89,169.78,169.63,26.78752966]
[1729475928174,21.6186,169.78,169.64,32.7157138]
[1729475928550,21.6186,169.78,169.66,20.0]
[1729475928753,21.6186,169.78,169.68,20.0]
[1729475928950,21.6186,169.78,169.69,13.78551172]
[1729475929175,21.6186,169.78,169.7,1.47370304]
[1729475929470,21.6186,169.78,169.71,1.47370304]
[1729475929776,15.0089,169.78,169.72,1.47370304]
[1729475929962,22.8392,169.82,169.73,1.47370304]
[1729475930162,22.7392,169.82,169.74,1.47370304]
[1729475930475,22.7392,169.82,169.75,1.47370304]
[1729475930654,22.7392,169.82,169.76,1.47370304]
[1729475930854,22.7392,169.82,169.77,1.47370304]
[1729475931063,23.776884,169.81,169.72,25.47483571]
[1729475931361,23.776884,169.81,169.73,1.47338322]
[1729475931593,23.776884,169.81,169.72,25.47483571]
[1729475931870,23.776884,169.81,169.73,1.47338313]
[1729475932073,23.776884,169.81,169.74,1.47338313]
[1729475932372,22.6392,169.82,169.75,1.47338313]
[1729475932563,22.6392,169.82,169.76,1.47338313]
[1729475932758,22.6392,169.82,169.72,25.47483571]
[1729475932971,22.6392,169.82,169.73,1.47338325]
[1729475935175,22.6392,169.82,169.74,1.47338143]
[1729475935353,22.6392,169.82,169.73,1.47338143]
[1729475936870,0.88374077,169.81,169.73,1.47338143]
[1729475938778,0.88374077,169.81,169.72,25.47483571]
[1729475938979,0.88374077,169.81,169.73,1.47327371]
[1729475939364,23.876884,169.8,169.73,1.47327371]
[1729475939561,23.876884,169.8,169.67,5.47483571]
[1729475939759,23.876884,169.8,169.68,1.47361069]
[1729475939967,0.1,169.79,169.68,1.47361069]
[1729475940754,0.1,169.79,169.68,21.47361069]
[1729475940955,0.1,169.79,169.69,1.47361069]
[1729475941187,0.1,169.79,169.68,20.0]
[1729475941676,0.1,169.79,169.69,1.47371316]
[1729475942271,23.876884,169.8,169.69,1.47371316]
[1729475942581,29.766184,169.8,169.69,1.47371316]
[1729475943974,0.2,169.79,169.69,1.47371316]
[1729475944167,0.1,169.78,169.69,1.47371316]
[1729475944571,0.1,169.79,169.69,1.47371316]
[1729475944771,0.2,169.79,169.69,1.47371316]
[1729475944973,0.2,169.79,169.7,1.47367549]
[1729475945182,0.2,169.79,169.68,20.0]
[1729475945489,0.2,169.79,169.69,1.47367605]
[1729475946483,5.8904,169.77,169.69,1.47367605]
[1729475946685,0.2,169.79,169.68,20.0]
[1729475946876,0.2,169.79,169.69,1.47375211]
[1729475947271,0.2,169.79,169.68,20.0]
[1729475947471,0.1,169.79,169.68,20.0]
[1729475947669,29.866384,169.8,169.68,20.0]
[1729475948074,23.776884,169.78,169.69,1.47377042]
[1729475948287,23.876884,169.78,169.68,20.0]
[1729475948582,23.876884,169.78,169.69,1.47375687]
[1729475948964,0.8838948,169.79,169.69,1.47375687]
[1729475949472,0.8838948,169.79,169.69,8.31072984]
[1729475949779,0.8838948,169.79,169.7,21.47375687]
[1729475949978,0.8838948,169.79,169.71,1.47360042]
[1729475950189,0.8838948,169.79,169.7,20.0]
[1729475950392,0.8838948,169.79,169.71,1.47357468]
[1729475950760,0.8838948,169.79,169.69,20.0]
[1729475950976,0.8838948,169.79,169.7,1.47354108]
[1729475951986,0.8838948,169.79,169.71,1.47357616]
[1729475952285,0.8838948,169.79,169.69,20.0]
[1729475952483,0.8838948,169.79,169.7,1.47354785]
[1729475956269,6.648,169.76,169.7,1.47354785]
[1729475956477,12.6388,169.76,169.63,15.6352]
[1729475956671,6.648,169.76,169.64,1.47386813]
[1729475956877,6.748,169.76,169.64,1.47386813]
[1729475957083,6.748,169.76,169.64,6.94870384]
[1729475957281,6.748,169.76,169.65,1.47386813]
[1729475957503,0.88402553,169.75,169.65,1.47386813]
[1729475957800,0.88402553,169.75,169.65,21.47386813]
[1729475957972,0.88402553,169.75,169.66,1.47386813]
[1729475965668,0.88402553,169.75,169.66,6.94870384]
[1729475965870,0.88402553,169.75,169.67,26.94870384]
[1729475966085,0.88402553,169.75,169.68,1.47386813]
[1729475973504,0.88402553,169.75,169.69,1.47369777]
[1729475973684,0.88402553,169.75,169.7,1.47369777]
[1729475973884,0.88402553,169.75,169.67,5.47483571]
[1729475974081,0.88402553,169.75,169.68,1.47370299]
[1729475975186,0.88402553,169.75,169.69,1.47370299]
[1729475975400,0.88402553,169.75,169.7,1.47370299]
[1729475975702,0.88402553,169.75,169.71,1.47370299]
[1729475975904,0.88402553,169.75,169.72,1.47370299]
[1729475976111,0.88402553,169.75,169.73,1.47370299]
[1729475976283,0.88402553,169.75,169.74,1.47370299]
[1729475976618,0.88402553,169.75,169.68,1.47370299]
[1729475976798,0.88402553,169.75,169.69,6.94831856]
[1729475977113,0.88402553,169.75,169.7,1.47348285]
[1729475977288,0.88402553,169.75,169.71,1.47348285]
[1729475977608,0.88402553,169.75,169.72,1.47348285]
[1729475977778,0.88402553,169.75,169.69,5.47483571]
[1729475977779,0.88402553,169.75,169.73,1.47348285]
[1729475978113,0.88402553,169.75,169.69,5.47483571]
[1729475978114,0.88402553,169.75,169.74,1.47348285]
[1729475978288,0.88402553,169.75,169.7,1.47348285]
[1729475978494,0.88402553,169.75,169.71,1.47348285]
[1729475978700,16.647,169.82,169.72,6.94831856]
[1729475978994,16.647,169.82,169.73,1.47348285]
[1729475979182,16.647,169.82,169.74,6.94831856]
[1729475979383,16.647,169.82,169.75,1.47348285]
[1729475979603,16.647,169.82,169.76,6.94831856]
[1729475979784,0.88359926,169.81,169.77,1.47348285]
[1729475980187,0.88359926,169.81,169.76,5.47483571]
[1729475980486,0.88359926,169.81,169.78,1.47315943]
[1729475980685,0.88359926,169.81,169.76,5.24824851]
[1729475980686,0.88359926,169.81,169.79,1.47315943]
[1729475980888,0.88359926,169.81,169.8,1.47315943]
[1729475981493,0.88359926,169.81,169.77,1.47315943]
[1729475981690,0.88359926,169.81,169.78,1.47315943]
[1729475981895,0.88359926,169.81,169.79,1.47315943]
[1729475982093,0.88359926,169.81,169.8,1.47315943]
[1729475982603,0.88359926,169.81,169.77,1.47315943]
[1729475982908,0.88359926,169.81,169.78,1.47315943]
[1729475983090,0.88359926,169.81,169.79,1.47315943]
[1729475983297,0.88359926,169.81,169.8,1.47315943]
[1729475983600,10.52766126,169.85,169.8,1.47315943]
[1729475983910,10.52766126,169.85,169.81,1.47273209]
[1729475984133,0.88323713,169.84,169.82,1.47273209]
[1729475984304,0.88323713,169.84,169.83,1.47273209]
[1729475984687,0.88323713,169.84,169.77,5.96402664]
[1729475984993,0.88323713,169.84,169.78,1.47273209]
[1729475985187,0.88323713,169.84,169.79,1.47273209]
[1729475985388,0.88323713,169.84,169.8,1.47273209]
[1729475985602,0.88323713,169.84,169.81,1.47273209]
[1729475985784,0.88323713,169.84,169.82,1.47273209]
[1729475985989,0.88323713,169.84,169.77,5.96402664]
[1729475986197,0.88323713,169.84,169.78,1.47296106]
[1729475986395,0.88323713,169.84,169.79,1.47296106]
[1729475986591,0.88323713,169.84,169.8,1.47296106]
[1729475986809,0.88323713,169.84,169.81,1.47296106]
[1729475987017,0.88323713,169.84,169.82,1.47296106]
[1729475987311,0.88323713,169.84,169.77,5.96402664]
[1729475987500,0.88323713,169.84,169.78,1.4730213]
[1729475987692,0.88323713,169.84,169.79,1.4730213]
[1729475987898,0.88323713,169.84,169.8,1.4730213]
[1729475988106,0.88323713,169.84,169.77,5.96402664]
[1729475988107,0.88323713,169.84,169.81,1.4730213]
[1729475988418,0.88323713,169.84,169.82,1.4730213]
[1729475988728,0.88323713,169.84,169.83,1.4730213]
[1729475988896,0.88323713,169.84,169.78,1.4730213]
[1729475989097,0.88323713,169.84,169.79,1.4730213]
[1729475989298,0.88323713,169.84,169.8,1.4730213]
[1729475989497,0.88323713,169.84,169.81,1.4730213]
[1729475989722,0.88323713,169.84,169.82,1.4730213]
[1729475989924,0.88323713,169.84,169.77,5.96402664]
[1729475990121,0.88323713,169.84,169.78,1.47298571]
[1729475990416,10.52766126,169.85,169.79,1.47298571]
[1729475990600,10.52766126,169.85,169.8,1.47298571]
[1729475990810,10.52766126,169.85,169.81,1.47298571]
[1729475991122,10.52766126,169.85,169.82,1.47298571]
[1729475991297,10.52766126,169.85,169.78,1.47293906]
[1729475991496,10.52766126,169.85,169.79,1.47293906]
[1729475991710,10.52766126,169.85,169.8,1.47293906]
[1729475991915,10.52766126,169.85,169.81,1.47293906]
[1729475992228,10.52766126,169.85,169.82,1.47293906]
[1729475992406,10.52766126,169.85,169.83,1.47293906]
[1729475992617,10.52766126,169.85,169.77,5.96402664]
[1729475992801,10.52766126,169.85,169.78,1.47288701]
[1729475993110,10.52766126,169.85,169.79,1.47288701]
[1729475993310,10.52766126,169.85,169.8,1.47288701]
[1729475993520,10.52766126,169.85,169.81,1.47288701]
[1729475993823,10.52766126,169.85,169.82,1.47288701]
[1729475994026,10.52766126,169.85,169.83,1.47288701]
[1729475994230,10.52766126,169.85,169.77,5.96402664]
[1729475994410,10.52766126,169.85,169.78,1.47289228]
[1729475994604,10.52766126,169.85,169.79,1.47289228]
[1729475994804,10.52766126,169.85,169.8,1.47289228]
[1729475995014,10.52766126,169.85,169.81,1.47289228]
[1729475995211,10.52766126,169.85,169.82,1.47289228]
[1729475995524,10.52766126,169.85,169.77,5.96402664]
[1729475995724,10.52766126,169.85,169.78,1.47291399]
[1729475995907,10.52766126,169.85,169.79,1.47291399]
[1729475996107,10.52766126,169.85,169.76,5.96402664]
[1729475996108,10.52766126,169.85,169.8,1.47291399]
[1729475996327,10.52766126,169.85,169.81,1.47291399]
[1729475996624,10.52766126,169.85,169.82,1.47291399]
[1729475996805,10.52766126,169.85,169.76,5.96402664]
[1729475997125,10.52766126,169.85,169.77,1.47290062]
[1729475997318,10.52766126,169.85,169.78,1.47290062]
[1729475997521,10.52766126,169.85,169.79,1.47290062]
[1729475997721,10.52766126,169.85,169.8,1.47290062]
[1729475998023,10.52766126,169.85,169.81,1.47289328]
[1729475998229,10.52766126,169.85,169.82,1.47289328]
[1729475998404,10.52766126,169.85,169.76,5.96402664]
[1729475998603,10.52766126,169.85,169.77,1.47286552]
[1729475998805,10.52766126,169.85,169.78,1.47286552]
[1729475999011,10.52766126,169.85,169.79,1.47286552]
[1729475999228,10.52766126,169.85,169.8,1.47286552]
[1729475999411,10.52766126,169.85,169.81,1.47286552]
[1729475999610,10.52766126,169.85,169.82,1.47286552]
[1729475999824,10.52766126,169.85,169.76,5.96402664]
[1729476000121,10.52766126,169.85,169.77,1.47284976]
[1729476000328,10.52766126,169.85,169.78,1.47284976]
[1729476000526,10.52766126,169.85,169.79,1.47284976]
[1729476000706,10.52766126,169.85,169.8,1.47284976]
[1729476000914,10.52766126,169.85,169.81,1.47275574]
[1729476001215,10.52766126,169.85,169.8,29.74091064]
[1729476001534,10.52766126,169.85,169.82,1.47266681]
[1729476001828,10.52766126,169.85,169.83,1.47266681]
[1729476002007,10.52766126,169.85,169.8,5.96402664]
[1729476002209,10.52766126,169.85,169.81,1.47275712]
[1729476002406,10.52766126,169.85,169.76,5.96402664]
[1729476002623,10.52766126,169.85,169.77,1.47296038]
[1729476002930,10.52766126,169.85,169.78,7.43698702]
[1729476003132,10.52766126,169.85,169.79,1.47296038]
[1729476003310,10.52766126,169.85,169.8,1.47296038]
[1729476003512,10.52766126,169.85,169.81,1.47296038]
[1729476003748,10.52766126,169.85,169.81,7.43698702]
[1729476003914,10.52766126,169.85,169.82,1.47296038]
[1729476005413,10.52766126,169.85,169.83,5.96402664]
[1729476005614,10.52766126,169.85,169.84,1.47296038]
[1729476007739,10.52766126,169.85,169.83,5.96402664]
[1729476007934,10.52766126,169.85,169.84,1.4726353]
[1729476008239,10.52766126,169.85,169.83,5.96402664]
[1729476011435,10.52766126,169.85,169.84,1.47245808]
[1729476017946,10.52766126,169.85,169.84,1.47231626]
[1729476019051,10.52766126,169.85,169.79,1.47231626]
[1729476021343,10.52766126,169.85,169.78,5.96402664]
[1729476021665,10.52766126,169.85,169.79,1.47245432]
[1729476022328,11.41080293,169.85,169.79,1.47245432]
[1729476025050,11.41080293,169.85,169.8,1.47245432]
[1729476025245,11.41080293,169.85,169.81,1.47245432]
[1729476025462,11.41080293,169.85,169.82,1.47245432]
[1729476025753,11.41080293,169.85,169.83,1.47245432]
[1729476025927,11.41080293,169.85,169.84,1.47245432]
[1729476026128,11.41080293,169.85,169.79,1.47245432]
[1729476026440,11.41080293,169.85,169.8,1.47245432]
[1729476026635,11.41080293,169.85,169.81,1.47245432]
[1729476026852,11.41080293,169.85,169.82,1.47245432]
[1729476027028,11.41080293,169.85,169.83,1.47245432]
[1729476027231,11.41080293,169.85,169.84,1.47245432]
[1729476027527,11.41080293,169.85,169.79,1.47245432]
[1729476027731,11.41080293,169.85,169.8,1.47245432]
[1729476027946,11.41080293,169.85,169.81,1.47245432]
[1729476028252,11.41080293,169.85,169.82,1.47245432]
[1729476028431,11.41080293,169.85,169.83,1.47245432]
[1729476028625,11.41080293,169.85,169.79,23.776884]
[1729476028928,11.41080293,169.85,169.8,7.43643157]
[1729476029134,11.41080293,169.85,169.81,1.47240493]
[1729476029338,11.41080293,169.85,169.82,1.47240493]
[1729476029635,11.41080293,169.85,169.83,1.47240493]
[1729476029947,11.41080293,169.85,169.84,1.47240493]
[1729476030152,11.41080293,169.85,169.81,1.47240493]
[1729476030452,11.41080293,169.85,169.82,1.47240493]
[1729476030750,11.41080293,169.85,169.83,1.47240493]
[1729476030935,11.41080293,169.85,169.84,1.47240493]
[1729476031126,11.41080293,169.85,169.81,1.47240493]
[1729476031327,11.41080293,169.85,169.82,1.47240493]
[1729476031634,11.41080293,169.85,169.83,1.47240493]
[1729476031851,11.41080293,169.85,169.84,1.47240493]
[1729476032037,11.41080293,169.85,169.81,1.47240493]
[1729476032235,11.41080293,169.85,169.82,1.47240493]
[1729476032435,11.41080293,169.85,169.83,1.47240493]
[1729476032637,11.41080293,169.85,169.84,1.47240493]
[1729476033037,11.41080293,169.85,169.81,1.47240493]
[1729476033233,11.41080293,169.85,169.82,1.47240493]
[1729476033441,11.41080293,169.85,169.83,1.47240493]
[1729476033750,11.41080293,169.85,169.84,1.47240493]
[1729476034142,11.41080293,169.85,169.81,1.47240493]
[1729476034457,11.41080293,169.85,169.82,1.47240493]
[1729476034647,11.41080293,169.85,169.83,1.47240493]
[1729476034953,11.41080293,169.85,169.84,1.47240493]
[1729476036038,11.41080293,169.85,169.84,1.47246252]
[1729476040839,11.41080293,169.85,169.84,25.24934652]
[1729476042139,10.52766126,169.85,169.84,25.24934652]
[1729476042337,10.52766126,169.85,169.84,1.47246252]
[1729476043557,10.52766126,169.85,169.84,25.24934652]
[1729476044861,10.52766126,169.85,169.84,57.75347316]
[1729476045152,0.6183465,169.9,169.87,0.1]
[1729476045354,0.6183465,169.9,169.88,1.47246252]
[1729476045652,0.6183465,169.9,169.89,25.24934652]
[1729476046658,0.6183465,169.9,169.89,1.47175313]
[1729476046947,0.6183465,169.9,169.89,41.18573713]
[1729476047963,0.6183465,169.9,169.89,25.24863713]
[1729476048541,0.6183465,169.9,169.89,25.34863713]
[1729476048942,0.6183465,169.9,169.89,25.24863713]
[1729476049240,0.6183465,169.9,169.89,25.34863713]
[1729476050343,0.6183465,169.9,169.89,0.1]
[1729476050646,0.6183465,169.9,169.89,25.34862605]
[1729476054055,0.6183465,169.9,169.89,1.57168418]
[1729476054251,0.6183465,169.9,169.89,25.34856818]
[1729476055368,0.6183465,169.9,169.89,45.34856818]
[1729476056251,0.6183465,169.9,169.89,51.31259482]
[1729476057754,0.6183465,169.9,169.89,51.31258788]
[1729476059075,0.6183465,169.9,169.89,27.43570388]
[1729476061279,0.6183465,169.9,169.89,27.43578659]
[1729476062067,0.6183465,169.9,169.89,7.43578659]
[1729476062372,0.6183465,169.9,169.89,1.47175995]
[1729476062575,6.8079465,169.9,169.85,1.47175995]
[1729476062759,7.69084577,169.9,169.86,1.47175995]
[1729476063079,7.69084577,169.9,169.87,1.47209201]
[1729476063277,7.69084577,169.9,169.88,1.47209201]
[1729476063569,7.69084577,169.9,169.89,1.47209201]
[1729476063977,7.69084577,169.9,169.86,1.47209201]
[1729476064172,7.69084577,169.9,169.85,20.0]
[1729476064675,7.69084577,169.9,169.84,12.10621842]
[1729476064676,7.69084577,169.9,169.86,1.47216691]
[1729476064859,7.69084577,169.9,169.87,1.47216691]
[1729476065060,7.69084577,169.9,169.88,1.47217146]
[1729476065370,7.69084577,169.9,169.89,1.47217111]
[1729476065562,7.69084577,169.9,169.86,1.47217111]
[1729476065764,7.69084577,169.9,169.87,1.47217111]
[1729476065964,7.69084577,169.9,169.88,1.47217111]
[1729476066158,7.69084577,169.9,169.89,1.47217111]
[1729476066355,7.69084577,169.9,169.86,1.47217111]
[1729476066563,1.50124577,169.9,169.87,1.47217111]
[1729476066757,1.50124577,169.9,169.88,1.47217111]
[1729476066971,1.50124577,169.9,169.89,1.47217111]
[1729476067456,1.50124577,169.9,169.86,1.47217111]
[1729476067657,1.50124577,169.9,169.87,1.4720347]
[1729476067852,1.50124577,169.9,169.88,1.4720347]
[1729476068076,1.50124577,169.9,169.89,1.4720347]
[1729476068477,1.50124577,169.9,169.86,1.4720347]
[1729476068776,1.50124577,169.9,169.87,1.4720347]
[1729476068966,1.50124577,169.9,169.88,1.4720347]
[1729476069167,1.50124577,169.9,169.89,1.4720347]
[1729476069478,1.50124577,169.9,169.89,1.47205981]
[1729476069682,1.50124577,169.9,169.86,1.47205981]
[1729476069976,1.50124577,169.9,169.87,1.47205981]
[1729476070285,1.50124577,169.9,169.88,1.47205981]
[1729476070586,1.50124577,169.9,169.89,1.47205981]
[1729476078267,1.50124577,169.9,169.85,26.14200398]
[1729476078494,1.50124577,169.9,169.86,1.47192191]
[1729476078788,1.50124577,169.9,169.87,1.47192191]
[1729476078994,1.50124577,169.9,169.88,1.47192191]
[1729476079169,1.50124577,169.9,169.89,1.47192191]
[1729476094086,1.50124577,169.9,169.85,5.96402664]
[1729476094087,10.52807809,169.88,169.85,5.96402664]
[1729476095268,10.52807809,169.88,169.84,20.0]
[1729476095478,10.52807809,169.88,169.84,25.96402664]
[1729476096998,10.52807809,169.88,169.85,5.96402664]
[1729476100074,10.52807809,169.88,169.82,7.16611807]
[1729476100996,26.13817809,169.88,169.82,7.16611807]
[1729476101195,26.13817809,169.88,169.73,15.5447]
[1729476101196,32.64107809,169.88,169.73,15.5447]
[1729476101377,29.663684,169.87,169.79,1.02273942]
[1729476101707,23.776884,169.87,169.74,4.73507076]
[1729476101895,0.88345677,169.86,169.74,4.73507076]
[1729476102101,0.88345677,169.86,169.73,7.16972713]
[1729476102806,0.88345677,169.86,169.75,20.0]
[1729476102984,0.88345677,169.86,169.77,20.0]
[1729476103183,0.88345677,169.86,169.79,20.0]
[1729476104607,0.88345677,169.86,169.79,6.46633219]
[1729476106184,16.5733,169.85,169.8,1.47240017]
[1729476106383,16.5733,169.85,169.81,1.47240017]
[1729476106584,16.5733,169.85,169.82,1.47240017]
[1729476106795,16.5733,169.85,169.83,1.47240017]
[1729476107104,16.5733,169.85,169.84,1.47240017]
[1729476107288,16.5733,169.85,169.74,1.47240017]
[1729476107489,16.5733,169.85,169.75,1.47240017]
[1729476107805,16.5733,169.85,169.76,1.47240017]
[1729476108001,16.5733,169.85,169.77,1.47240017]
[1729476108199,16.5733,169.85,169.78,1.47240017]
[1729476108503,16.5733,169.85,169.79,1.47240017]
[1729476108685,16.5733,169.85,169.8,1.47240017]
[1729476108993,16.5733,169.85,169.81,1.47240017]
[1729476109322,16.5733,169.85,169.82,1.47240017]
[1729476109605,16.5733,169.85,169.83,1.47240017]
[1729476109792,16.5733,169.85,169.84,1.47240017]
[1729476109996,16.5733,169.85,169.75,1.47240017]
[1729476110191,16.5733,169.85,169.76,1.47240017]
[1729476110393,16.5733,169.85,169.77,1.47240017]
[1729476110693,16.5733,169.85,169.78,1.47240017]
[1729476110909,16.5733,169.85,169.79,1.47240017]
[1729476111214,16.5733,169.85,169.8,1.47240017]
[1729476111503,16.5733,169.85,169.81,1.47240017]
[1729476111728,16.5733,169.85,169.82,1.47240017]
[1729476111903,16.5733,169.85,169.83,1.47240017]
[1729476112209,16.5733,169.85,169.74,20.0]
[1729476112410,16.5733,169.85,169.75,1.47279403]
[1729476112598,16.5733,169.85,169.76,1.47279403]
[1729476112903,16.5733,169.85,169.77,1.47279403]
[1729476113112,16.5733,169.85,169.78,1.47279403]
[1729476113402,16.5733,169.85,169.79,1.47279403]
[1729476113607,16.5733,169.85,169.8,1.47279403]
[1729476113812,16.5733,169.85,169.81,1.47279403]
[1729476114032,16.5733,169.85,169.82,1.47279403]
[1729476114321,16.5733,169.85,169.74,20.0]
[1729476114515,16.5733,169.85,169.75,1.47279452]
[1729476114811,16.5733,169.85,169.76,1.47279452]
[1729476115012,16.5733,169.85,169.77,1.47279452]
[1729476115198,16.5733,169.85,169.78,1.47279452]
[1729476115396,16.5733,169.85,169.79,1.47279452]
[1729476115602,16.5733,169.85,169.8,1.47279452]
[1729476115795,16.5733,169.85,169.81,1.47279452]
[1729476116110,16.5733,169.85,169.82,1.47279452]